bitfinex-derivatives/quotes_SOLF0:USTF0_20241010
["timestamp","ask_amount","ask_price","bid_price","bid_amount"]
[1728558981460,9.88445498,139.98,139.97,0.12502]
[1728558982057,3.5765,139.96,139.95,11.04]
[1728558983658,16.56,139.97,139.91,0.12502]
[1728558983859,16.56,139.97,139.93,11.04]
[1728558984363,11.04,139.96,139.91,0.12502]
[1728558984564,11.04,139.95,139.92,6.02049924]
[1728558984859,3.5774,139.93,139.91,11.16502]
[1728558985066,3.5774,139.93,139.92,6.02120276]
[1728558985260,5.52,139.94,139.92,17.06120276]
[1728558985462,9.097,139.94,139.92,11.04]
[1728558985857,5.52,139.94,139.92,11.04]
[1728558986062,3.5773,139.93,139.92,11.04]
[1728558986358,3.5773,139.93,139.92,17.05974994]
[1728558986560,3.5773,139.93,139.92,6.01974994]
[1728558986763,3.5773,139.93,139.91,11.16502]
[1728558988456,9.0971,139.94,139.91,11.16502]
[1728558988655,5.52,139.94,139.93,11.04]
[1728558990868,9.097,139.94,139.93,11.04]
[1728558992864,3.577,139.94,139.93,11.04]
[1728558993164,3.5769,139.95,139.93,11.04]
[1728558993365,2.7332,139.98,139.94,14.6169]
[1728558993566,2.7332,139.98,139.95,11.04]
[1728558993765,2.7332,139.98,139.91,0.12502]
[1728558993766,2.7332,139.98,139.94,11.04]
[1728558994269,3.5764,139.97,139.94,11.04]
[1728558994663,2.7332,139.98,139.91,0.12502]
[1728558994856,3.5767,139.96,139.94,11.04]
[1728558995274,2.7332,139.98,139.94,11.04]
[1728558995462,3.5763,139.97,139.95,11.04]
[1728558995963,3.576,139.98,139.96,11.04]
[1728558996169,5.52,140.01,139.96,11.04]
[1728558996365,3.5756,140.0,139.96,14.6163]
[1728558996562,16.56,140.01,139.96,11.04]
[1728558996964,3.5759,139.99,139.96,11.04]
[1728558997566,3.576,139.98,139.96,11.04]
[1728558997969,11.04,140.0,139.93,5.52]
[1728558998275,3.5764,139.97,139.95,11.04]
[1728558999072,3.5764,139.97,139.93,3.5771]
[1728558999272,3.5764,139.97,139.94,11.04]
[1728558999665,11.04,140.0,139.94,11.04]
[1728558999871,3.5763,139.97,139.95,11.04]
[1728559000567,9.05192168,140.01,139.95,11.04]
[1728559000568,3.576,139.99,139.95,11.04]
[1728559000769,11.04,140.0,139.95,11.04]
[1728559001369,3.5761,139.98,139.95,11.04]
[1728559002669,11.04,140.0,139.95,11.04]
[1728559002974,3.5763,139.97,139.95,11.04]
[1728559003975,3.5761,139.98,139.95,11.04]
[1728559007373,11.04,140.0,139.95,11.04]
[1728559007678,3.5763,139.97,139.95,11.04]
[1728559008480,11.04,139.99,139.92,9.0974]
[1728559008678,11.04,139.99,139.94,11.04]
[1728559008983,3.5768,139.95,139.94,11.04]
[1728559009277,3.5768,139.95,139.93,11.04]
[1728559009676,16.46,139.98,139.92,5.52]
[1728559009976,3.577,139.94,139.92,11.04]
[1728559011081,3.5766,139.96,139.93,14.6172]
[1728559011272,16.46,139.98,139.93,11.04]
[1728559011578,16.46,139.98,139.91,0.12502]
[1728559011780,3.5769,139.95,139.94,11.04]
[1728559012180,3.5769,139.95,139.91,0.12502]
[1728559012181,3.5769,139.95,139.93,11.04]
[1728559013577,11.04,139.96,139.92,11.04]
[1728559015484,3.5773,139.93,139.91,0.12502]
[1728559015685,3.5773,139.93,139.91,11.16502]
[1728559017584,3.5775,139.92,139.91,11.16502]
[1728559017786,3.5775,139.92,139.91,0.12502]
[1728559027696,14.6175,139.92,139.91,0.12502]
[1728559027897,16.48,139.92,139.84,93.10312953]
[1728559028093,16.48,139.92,139.86,6.0141459]
[1728559028094,11.04,139.9,139.86,6.0141459]
[1728559028297,11.04,139.9,139.85,0.12502]
[1728559028599,3.579,139.87,139.85,0.12502]
[1728559029000,16.48,139.89,139.85,0.12502]
[1728559029298,3.5787,139.88,139.85,0.12502]
[1728559029997,3.5787,139.88,139.85,3.70432]
[1728559031997,3.5787,139.88,139.85,0.12502]
[1728559033503,3.5787,139.88,139.85,3.70422]
[1728559033894,3.5787,139.88,139.85,14.74422]
[1728559036909,5.44,139.89,139.85,11.16502]
[1728559037109,9.0185,139.89,139.86,3.579]
[1728559037602,9.0185,139.89,139.85,14.74422]
[1728559038800,3.64231522,139.93,139.88,11.04]
[1728559039007,5.34,139.93,139.89,11.04]
[1728559039313,8.9174,139.93,139.89,14.6181]
[1728559045912,5.34,139.93,139.89,14.6181]
[1728559046118,3.5776,139.92,139.89,14.6181]
[1728559046304,5.34,139.93,139.89,11.04]
[1728559046506,5.34,139.93,139.9,11.04]
[1728559046915,5.34,139.93,139.91,3.5777]
[1728559047319,11.04,139.94,139.91,3.5777]
[1728559047320,14.6171,139.94,139.91,3.5777]
[1728559047516,5.34,139.94,139.91,3.5777]
[1728559048923,22.7169,139.95,139.92,3.5775]
[1728559051718,17.3769,139.95,139.92,3.5775]
[1728559052122,13.8,139.95,139.92,3.5775]
[1728559052418,3.53192168,140.01,139.91,11.04]
[1728559052623,0.12502,139.97,139.94,11.04]
[1728559053215,0.12502,139.97,139.96,3.5765]
[1728559053416,0.12502,139.97,139.95,11.04]
[1728559054218,0.12502,139.97,139.96,3.5765]
[1728559058516,0.12502,139.97,139.96,14.6165]
[1728559060631,0.12502,139.97,139.95,11.04]
[1728559060818,3.5765,139.96,139.95,11.04]
[1728559061221,3.70142,139.97,139.95,11.04]
[1728559061427,0.12502,139.97,139.95,11.04]
[1728559062526,3.70142,139.97,139.95,11.04]
[1728559064526,3.5765,139.96,139.95,11.04]
[1728559067725,3.70142,139.97,139.95,11.04]
[1728559067927,0.12502,139.97,139.96,11.04]
[1728559068136,0.12502,139.97,139.96,14.6165]
[1728559068931,0.12502,139.97,139.96,11.04]
[1728559069534,0.12502,139.97,139.96,14.6165]
[1728559074835,0.12502,139.97,139.92,8.98791326]
[1728559075035,0.12502,139.97,139.96,11.04]
[1728559077046,0.12502,139.97,139.92,8.98791326]
[1728559077242,3.70142,139.97,139.95,11.04]
[1728559077437,3.70142,139.97,139.96,11.04]
[1728559078145,0.12502,139.97,139.96,11.04]
[1728559078947,0.12502,139.97,139.96,14.6165]
[1728559085855,0.12502,139.97,139.96,11.04]
[1728559090955,0.12502,139.97,139.96,14.6165]
[1728559099760,0.12502,139.97,139.92,8.98791326]
[1728559100069,3.5767,139.96,139.94,11.04]
[1728559100478,3.70132,139.97,139.94,14.6168]
[1728559100772,3.70132,139.97,139.96,11.04]
[1728559108073,8.86132,139.97,139.96,11.04]
[1728559112575,5.28502,139.97,139.9,5.16]
[1728559112776,5.28502,139.97,139.95,11.04]
[1728559113687,3.5766,139.96,139.95,11.04]
[1728559114294,8.86132,139.97,139.95,11.04]
[1728559114793,8.86132,139.97,139.96,11.04]
[1728559116084,5.28502,139.97,139.96,11.04]
[1728559120696,5.28502,139.97,139.96,17.05376245]
[1728559122490,8.86132,139.97,139.96,6.01376245]
[1728559122685,5.28502,139.97,139.96,6.01376245]
[1728559122984,5.28502,139.97,139.96,17.05376245]
[1728559122985,0.12502,139.97,139.96,17.05376245]
[1728559123186,0.12502,139.97,139.96,20.63026245]
[1728559124091,5.16,140.01,139.96,17.05376245]
[1728559124293,8.7352,140.01,139.99,11.04]
[1728559124685,5.16,140.01,139.99,14.6156]
[1728559125688,3.5751,140.02,139.99,14.6156]
[1728559125888,8.7351,140.02,139.99,14.6156]
[1728559126798,3.5753,140.01,139.98,3.5759]
[1728559127092,3.5753,140.01,139.98,14.6159]
[1728559128991,3.5753,140.01,139.99,3.5757]
[1728559129700,8.7351,140.02,139.99,3.5757]
[1728559131099,8.6551,140.02,139.99,3.5757]
[1728559131301,66.03339177,140.03,140.0,3.5753]
[1728559131497,58.90188529,140.03,139.99,11.04]
[1728559131908,53.82188529,140.03,140.01,3.5751]
[1728559135904,53.82188529,140.03,140.01,11.04]
[1728559136107,0.12502,140.03,140.01,11.04]
[1728559136703,0.12502,140.03,140.01,14.6151]
[1728559141413,0.12502,140.03,140.02,3.575]
[1728559141808,3.69992,140.03,139.95,94.26029065]
[1728559142017,3.69992,140.03,140.0,14.6153]
[1728559142315,0.12502,140.03,140.0,11.04]
[1728559142917,0.12502,140.03,140.01,3.5747]
[1728559143816,3.69942,140.03,140.01,3.5747]
[1728559144415,0.12502,140.03,140.01,14.6147]
[1728559144609,0.12502,140.03,140.01,11.04]
[1728559144918,0.12502,140.03,140.01,14.6147]
[1728559148318,0.12502,140.03,140.01,11.04]
[1728559149020,0.12502,140.03,140.01,14.6146]
[1728559153221,0.12502,140.03,140.02,3.5746]
[1728559153426,0.12502,140.03,140.01,11.04]
[1728559154625,0.12502,140.03,140.02,11.04]
[1728559157827,0.12502,140.03,139.98,5.08]
[1728559158123,11.16502,140.03,139.99,11.04]
[1728559158631,3.5748,140.02,139.99,14.6153]
[1728559158832,11.16502,140.03,139.99,11.04]
[1728559159030,3.5749,140.01,139.99,11.04]
[1728559159430,3.5749,140.01,139.98,3.5755]
[1728559159431,3.69952,140.03,140.0,14.6151]
[1728559160641,0.12502,140.03,140.0,11.04]
[1728559160932,3.69942,140.03,140.0,14.615]
[1728559161936,0.12502,140.03,140.02,11.04]
[1728559163527,0.12502,140.03,140.01,3.5748]
[1728559163931,0.12502,140.03,140.02,11.04]
[1728559167237,3.5748,140.02,139.98,3.5756]
[1728559167433,0.12502,140.03,139.99,6.00232725]
[1728559167434,16.24502,140.03,139.99,6.00232725]
[1728559167731,16.24502,140.03,139.98,11.04]
[1728559167934,3.575,140.01,139.98,14.6156]
[1728559169930,16.24502,140.03,139.98,11.04]
[1728559170135,3.5753,140.0,139.98,11.04]
[1728559171036,18.94082,140.03,139.98,11.04]
[1728559171239,18.94082,140.03,139.96,3.576]
[1728559171437,18.94082,140.03,139.98,11.04]
[1728559171934,3.5753,140.0,139.98,11.04]
[1728559177043,3.5753,140.0,139.98,14.6156]
[1728559180540,18.94082,140.03,139.98,14.6156]
[1728559180847,3.5751,140.01,139.98,14.6156]
[1728559182346,18.94082,140.03,139.99,3.5751]
[1728559182347,8.6547,140.02,139.99,3.5751]
[1728559182551,7.90082,140.03,140.0,11.04]
[1728559184450,3.5747,140.02,140.0,14.615]
[1728559185758,11.47532,140.03,140.0,14.615]
[1728559187659,3.5747,140.02,139.99,3.5752]
[1728559187846,7.90082,140.03,139.99,11.04]
[1728559188251,11.47532,140.03,140.0,9.58707742]
[1728559188451,11.47532,140.03,140.0,3.5751]
[1728559189261,3.5746,140.02,140.0,3.5751]
[1728559191060,3.5746,140.02,139.99,14.6152]
[1728559191253,3.5749,140.01,140.0,6.01736346]
[1728559191449,14.6149,140.01,140.0,6.01736346]
[1728559191856,14.6149,140.01,139.97,14.6157]
[1728559192061,14.6149,140.01,139.98,6.01859766]
[1728559192360,14.6149,140.01,139.99,6.01859766]
[1728559192361,14.6151,140.01,139.99,6.01859766]
[1728559192560,14.6151,140.01,140.0,6.01859766]
[1728559193669,14.6151,140.01,139.98,3.5756]
[1728559193857,14.6151,140.01,140.0,6.02104873]
[1728559194568,11.04,140.02,140.0,6.02104873]
[1728559194865,11.04,140.02,139.98,11.04]
[1728559195057,11.04,140.02,139.99,6.02129064]
[1728559195258,14.6146,140.02,140.0,6.02129064]
[1728559195466,14.6146,140.02,139.99,3.5752]
[1728559195665,14.6146,140.02,140.0,6.02163405]
[1728559195867,14.6146,140.02,139.99,3.5752]
[1728559196068,14.6146,140.02,140.0,6.02163405]
[1728559196264,14.6146,140.02,139.99,3.5752]
[1728559196469,14.6146,140.02,140.0,6.02212709]
[1728559196764,20.36622,140.03,139.98,11.04]
[1728559197173,20.36622,140.03,139.99,6.02208811]
[1728559197479,20.36622,140.03,140.0,6.02208811]
[1728559197664,20.36622,140.03,139.98,11.04]
[1728559197863,3.5747,140.02,139.99,9.59775744]
[1728559198065,3.5747,140.02,140.0,6.02245744]
[1728559198262,3.5747,140.02,139.99,3.5753]
[1728559198467,3.5747,140.02,140.0,6.02303292]
[1728559198665,3.5747,140.02,139.99,3.5753]
[1728559198866,3.5747,140.02,140.0,6.02297849]
[1728559199069,3.5747,140.02,139.99,3.5753]
[1728559199258,3.5747,140.02,140.0,6.02352186]
[1728559199460,3.5747,140.02,140.01,6.02352186]
[1728559199765,3.5747,140.02,139.95,94.26029065]
[1728559199766,3.5753,140.0,139.97,11.04]
[1728559199963,3.5753,140.0,139.97,14.6158]
[1728559200164,11.04,139.99,139.98,6.02420644]
[1728559200466,14.6154,139.99,139.98,6.02420644]
[1728559200666,11.04,139.99,139.95,94.26029065]
[1728559200968,3.576,139.97,139.95,94.26029065]
[1728559205275,3.5755,139.99,139.96,14.6161]
[1728559206176,16.12,140.0,139.96,11.04]
[1728559206380,3.5756,139.98,139.96,11.04]
[1728559207374,3.5749,140.01,139.96,11.04]
[1728559207585,16.12,140.0,139.97,14.6159]
[1728559208082,3.5754,139.99,139.97,11.04]
[1728559209685,4.24622,140.03,139.97,11.04]
[1728559209886,14.615,140.01,139.98,3.5754]
[1728559210079,11.04,140.01,139.97,11.04]
[1728559210268,3.5752,140.0,139.97,14.6158]
[1728559210979,3.5751,140.0,139.97,14.6158]
[1728559212489,3.5754,139.99,139.97,11.04]
[1728559212887,16.12,140.02,139.97,11.04]
[1728559213077,3.5753,140.0,139.97,14.6159]
[1728559214197,11.04,139.98,139.95,94.26029065]
[1728559214679,3.5762,139.96,139.95,94.26029065]
[1728559218586,1.3717,139.98,139.95,105.30029065]
[1728559219486,3.576,139.97,139.95,105.30029065]
[1728559220788,16.12,139.96,139.87,2.7599]
[1728559220987,3.5772,139.92,139.89,11.04]
[1728559221291,3.5772,139.92,139.89,14.6178]
[1728559222285,3.5772,139.92,139.86,5.08]
[1728559222286,14.6172,139.92,139.86,14.6186]
[1728559225594,14.6172,139.92,139.85,14.74382]
[1728559225992,14.6172,139.92,139.85,11.16502]
[1728559227495,14.6172,139.92,139.86,3.5787]
[1728559227996,3.5772,139.92,139.85,11.16502]
[1728559228194,19.6972,139.92,139.88,3.5781]
[1728559228697,19.6972,139.92,139.89,3.5779]
[1728559230098,5.08,139.92,139.9,3.5775]
[1728559230300,16.12,139.92,139.88,11.04]
[1728559230997,16.12,139.92,139.89,3.5778]
[1728559233701,19.6972,139.92,139.89,3.5778]
[1728559235708,19.6972,139.92,139.85,0.12502]
[1728559235901,19.6972,139.92,139.87,3.5783]
[1728559236203,16.12,139.92,139.87,3.5783]
[1728559236410,11.04,139.89,139.87,3.5783]
[1728559236904,3.5778,139.9,139.87,3.5783]
[1728559237110,14.6178,139.9,139.87,3.5783]
[1728559237806,14.6178,139.9,139.86,11.04]
[1728559238002,11.04,139.9,139.86,11.04]
[1728559238603,5.08,139.92,139.87,11.04]
[1728559238904,16.12,139.92,139.87,11.04]
[1728559239209,3.5774,139.91,139.88,3.5781]
[1728559239396,3.5774,139.91,139.87,11.04]
[1728559239602,14.6174,139.91,139.87,11.04]
[1728559239803,3.5774,139.91,139.87,11.04]
[1728559240000,14.6174,139.91,139.87,11.04]
[1728559240298,14.6174,139.91,139.88,3.5781]
[1728559241103,11.04,139.9,139.88,3.5781]
[1728559241300,14.6178,139.9,139.88,3.5781]
[1728559241809,11.04,139.9,139.86,11.04]
[1728559242008,14.6181,139.89,139.87,3.5783]
[1728559242800,5.08,139.92,139.85,11.16502]
[1728559242999,14.6178,139.9,139.88,3.578]
[1728559244002,3.5779,139.89,139.87,3.5784]
[1728559244306,11.04,139.9,139.87,3.5784]
[1728559244509,5.08,139.92,139.87,3.5784]
[1728559244703,14.6178,139.9,139.87,3.5784]
[1728559245610,14.6178,139.9,139.88,3.5781]
[1728559245805,11.04,139.9,139.88,3.5781]
[1728559246006,14.6177,139.9,139.88,3.5781]
[1728559248416,11.04,139.9,139.86,3.62253377]
[1728559248610,3.5776,139.91,139.85,11.16502]
[1728559248813,3.5776,139.91,139.88,3.5781]
[1728559248814,14.6177,139.91,139.88,3.5781]
[1728559249515,3.5775,139.91,139.88,3.5781]
[1728559249812,14.6175,139.91,139.88,3.5781]
[1728559253012,8.6573,139.92,139.9,3.5776]
[1728559253216,19.6973,139.92,139.9,3.5776]
[1728559253414,14.6173,139.92,139.9,3.5776]
[1728559253604,3.5775,139.91,139.89,3.5778]
[1728559254413,14.6175,139.91,139.88,3.5781]
[1728559255515,1.4177,139.93,139.86,19.63805532]
[1728559255714,14.6174,139.92,139.9,3.5777]
[1728559255922,3.5774,139.92,139.9,3.5777]
[1728559256115,14.6174,139.92,139.9,3.5777]
[1728559256715,1.4177,139.93,139.89,11.04]
[1728559256923,11.04,139.93,139.89,11.04]
[1728559257516,5.08,139.94,139.89,11.04]
[1728559257716,6.433,139.96,139.89,11.04]
[1728559257915,11.04,139.94,139.91,3.5774]
[1728559258211,11.04,139.94,139.89,16.12]
[1728559258415,11.04,139.94,139.89,5.08]
[1728559258623,14.6168,139.94,139.91,3.5773]
[1728559259328,11.04,139.95,139.89,5.08]
[1728559259626,11.04,139.95,139.91,11.04]
[1728559259924,11.04,139.95,139.93,3.5769]
[1728559260315,0.12502,139.97,139.91,11.04]
[1728559260523,11.16502,139.97,139.93,11.04]
[1728559261027,11.04,139.96,139.94,3.5765]
[1728559261228,11.04,139.96,139.92,11.04]
[1728559261723,14.6163,139.96,139.93,3.5768]
[1728559261923,11.04,139.95,139.9,104.5886425]
[1728559262224,14.6165,139.95,139.92,3.5771]
[1728559263125,14.6165,139.95,139.93,3.5769]
[1728559263627,14.6163,139.96,139.93,3.5769]
[1728559265228,3.5763,139.96,139.93,3.5769]
[1728559265428,14.6163,139.96,139.93,3.5769]
[1728559268525,11.04,139.94,139.89,11.04]
[1728559268730,11.04,139.92,139.87,11.04]
[1728559269322,14.6173,139.92,139.89,3.5778]
[1728559271333,3.5778,139.9,139.87,3.5783]
[1728559271726,11.04,139.89,139.85,11.16502]
[1728559271927,11.04,139.89,139.86,3.5786]
[1728559271928,3.5782,139.88,139.86,3.5786]
[1728559272731,14.6182,139.88,139.85,3.70382]
[1728559273534,11.04,139.88,139.86,3.5786]
[1728559273735,3.578,139.89,139.86,3.5786]
[1728559273934,14.618,139.89,139.86,3.5786]
[1728559274135,14.618,139.89,139.87,3.5784]
[1728559274636,14.618,139.89,139.86,3.5785]
[1728559274840,14.618,139.89,139.85,11.16502]
[1728559275341,14.618,139.89,139.86,3.5787]
[1728559275529,11.04,139.89,139.85,11.16502]
[1728559276239,11.04,139.89,139.87,3.5784]
[1728559276442,8.6578,139.9,139.86,11.04]
[1728559277131,14.6173,139.92,139.9,3.5777]
[1728559277335,3.5773,139.92,139.9,3.5777]
[1728559277535,3.5773,139.92,139.88,11.04]
[1728559277736,14.6174,139.91,139.89,3.5779]
[1728559278135,14.6174,139.91,139.87,11.04]
[1728559278446,14.6177,139.9,139.88,3.5781]
[1728559278743,11.04,139.9,139.86,11.04]
[1728559280445,14.6178,139.9,139.88,3.5782]
[1728559280738,11.04,139.89,139.85,11.16502]
[1728559280946,3.5785,139.87,139.85,3.70382]
[1728559281143,11.04,139.88,139.85,3.70382]
[1728559281933,14.6185,139.87,139.85,0.12502]
[1728559283244,11.04,139.87,139.85,0.12502]
[1728559283547,19.6987,139.86,139.85,0.12502]
[1728559283934,8.6587,139.86,139.85,0.12502]
[1728559287748,5.08,139.86,139.85,0.12502]
[1728559290939,8.6586,139.87,139.85,0.12502]
[1728559292145,8.6586,139.87,139.85,11.16502]
[1728559292146,5.08,139.87,139.85,11.16502]
[1728559292449,8.6581,139.89,139.85,11.16502]
[1728559292651,3.5782,139.88,139.86,3.5786]
[1728559293844,14.6182,139.88,139.85,3.70382]
[1728559294347,3.5785,139.87,139.85,3.70382]
[1728559295343,14.6183,139.88,139.85,3.70382]
[1728559298754,19.6983,139.88,139.86,3.5787]
[1728559303269,19.6983,139.88,139.85,3.70382]
[1728559303661,19.6983,139.88,139.85,0.12502]
[1728559303864,19.6983,139.88,139.86,3.5787]
[1728559303865,8.6583,139.88,139.86,3.5787]
[1728559306566,3.5781,139.89,139.87,3.5784]
[1728559306772,8.6581,139.89,139.87,3.5784]
[1728559307369,8.6581,139.89,139.86,3.5786]
[1728559307570,19.6981,139.89,139.86,3.5786]
[1728559309378,3.5782,139.88,139.86,3.5786]
[1728559309673,11.04,139.87,139.85,3.70382]
[1728559310468,14.6185,139.87,139.85,3.70382]
[1728559310969,14.6187,139.86,139.85,0.12502]
[1728559311165,19.6987,139.86,139.85,0.12502]
[1728559312671,8.6587,139.86,139.85,0.12502]
[1728559314376,2.6861,139.9,139.85,3.70402]
[1728559314578,11.04,139.88,139.85,3.70402]
[1728559315379,14.6184,139.88,139.85,3.70402]
[1728559316778,19.6984,139.88,139.85,3.70402]
[1728559316983,11.04,139.86,139.85,0.12502]
[1728559318583,14.6187,139.86,139.85,0.12502]
[1728559323085,11.04,139.86,139.85,0.12502]
[1728559324090,14.6187,139.86,139.85,0.12502]
[1728559325478,8.6586,139.87,139.85,0.12502]
[1728559327185,5.08,139.87,139.85,0.12502]
[1728559327392,14.6187,139.86,139.85,0.12502]
[1728559327892,19.6987,139.86,139.85,0.12502]
[1728559331591,5.08,139.86,139.85,0.12502]
[1728559332490,14.6185,139.87,139.85,3.70402]
[1728559332491,19.6985,139.87,139.85,3.70402]
[1728559334295,19.6985,139.87,139.85,0.12502]
[1728559335296,3.5787,139.86,139.85,0.12502]
[1728559335989,19.6987,139.87,139.85,0.12502]
[1728559337595,3.5787,139.86,139.85,0.12502]
[1728559338687,14.6187,139.86,139.85,0.12502]
[1728559339800,3.5787,139.86,139.85,0.12502]
[1728559340003,16.12,139.87,139.85,0.12502]
[1728559340297,19.6986,139.87,139.85,3.70402]
[1728559340999,19.6986,139.87,139.85,0.12502]
[1728559341501,3.5787,139.86,139.85,0.12502]
[1728559342397,5.08,139.87,139.85,0.12502]
[1728559342594,16.12,139.87,139.85,3.70392]
[1728559343396,2.6861,139.9,139.85,0.12502]
[1728559343604,5.08,139.89,139.85,11.16502]
[1728559344700,5.08,139.89,139.88,3.5782]
[1728559347896,11.04,139.9,139.89,3.5779]
[1728559348697,1.3901,139.91,139.86,11.04]
[1728559348898,6.4701,139.91,139.89,3.5777]
[1728559350404,10.0477,139.91,139.89,3.5777]
[1728559350797,6.4701,139.91,139.89,3.5777]
[1728559350997,6.4701,139.91,139.87,11.04]
[1728559351198,6.4701,139.91,139.9,3.5777]
[1728559351494,6.4701,139.91,139.87,11.04]
[1728559351701,6.4701,139.91,139.89,3.5778]
[1728559352998,11.04,139.9,139.87,3.5783]
[1728559353699,14.6178,139.9,139.87,3.5783]
[1728559356693,14.6178,139.9,139.88,3.5782]
[1728559361604,11.04,139.9,139.85,0.12502]
[1728559361803,11.04,139.87,139.86,3.5785]
[1728559362003,11.04,139.88,139.85,0.12502]
[1728559362407,11.04,139.88,139.86,3.5787]
[1728559363503,11.04,139.88,139.87,3.5785]
[1728559364813,14.618,139.89,139.87,3.5785]
[1728559366414,14.6184,139.88,139.86,3.5787]
[1728559366909,11.04,139.87,139.85,3.70382]
[1728559368310,14.6186,139.87,139.85,3.70382]
[1728559368904,14.6186,139.87,139.85,0.12502]
[1728559370116,14.6186,139.87,139.85,3.70392]
[1728559374721,3.5786,139.87,139.85,3.70392]
[1728559375018,14.6186,139.87,139.85,3.70392]
[1728559378820,14.6186,139.87,139.85,0.12502]
[1728559380423,14.6186,139.87,139.85,3.70392]
[1728559380924,3.5787,139.86,139.85,0.12502]
[1728559382224,5.08,139.88,139.85,0.12502]
[1728559382423,16.12,139.88,139.85,0.12502]
[1728559383320,16.12,139.88,139.86,3.5786]
[1728559384219,19.6983,139.88,139.86,3.5786]
[1728559384627,11.04,139.87,139.86,3.5786]
[1728559389924,11.04,139.87,139.85,0.12502]
[1728559390224,11.04,139.87,139.85,3.70382]
[1728559391921,14.6185,139.87,139.85,3.70382]
[1728559392429,19.6985,139.87,139.85,3.70382]
[1728559394932,16.12,139.87,139.85,0.12502]
[1728559395235,5.08,139.88,139.85,0.12502]
[1728559395628,17.4765,139.89,139.85,0.12502]
[1728559396030,11.04,139.88,139.85,0.12502]
[1728559396833,3.5785,139.87,139.85,3.70382]
[1728559400535,11.04,139.88,139.85,3.70382]
[1728559400740,14.6184,139.88,139.85,3.70382]
[1728559401041,14.6184,139.88,139.86,3.5786]
[1728559406438,1.3565,139.89,139.85,0.12502]
[1728559406639,19.6978,139.9,139.88,3.5782]
[1728559407635,16.12,139.9,139.86,11.04]
[1728559407840,3.5779,139.89,139.87,3.5783]
[1728559410343,14.6183,139.88,139.86,3.5786]
[1728559410535,11.04,139.86,139.85,0.12502]
[1728559410946,11.04,139.86,139.85,3.70402]
[1728559411537,11.04,139.86,139.85,0.12502]
[1728559413441,14.6187,139.86,139.85,0.12502]
[1728559415150,3.5787,139.86,139.85,0.12502]
[1728559415348,14.6187,139.86,139.85,0.12502]
[1728559415948,16.12,139.87,139.86,3.5787]
[1728559416349,16.12,139.87,139.85,0.12502]
[1728559416647,19.6985,139.87,139.85,3.70392]
[1728559417252,14.6185,139.87,139.85,3.70392]
[1728559417746,11.04,139.87,139.85,3.70392]
[1728559420656,11.04,139.86,139.85,3.70392]
[1728559420849,11.04,139.86,139.85,0.12502]
[1728559422556,14.6187,139.86,139.85,0.12502]
[1728559423958,11.04,139.86,139.85,0.12502]
[1728559424773,14.6187,139.86,139.85,0.12502]
[1728559429055,15.9738,139.86,139.85,0.12502]
[1728559437666,12.3951,139.86,139.79,0.12502]
[1728559437972,14.6198,139.82,139.79,0.12502]